[Event "Open Mancomunitat de la Ribera Alta (Sumacàrcer)"]
[Site "Sumacàrcer, Spain"]
[Date "2018.11.18"]
[Round "1.1"]
[White "Plaskett, H James"]
[Black "Minguez Piquer, Joaquim"]
[Result "1-0"]
[TimeControl "5m+3s"]
[WhiteElo "2490"]
[BlackElo "1786"]

1. Nc3 {[%clk 00:05:05]} Nc6 {[%clk 00:05:03]} {[%emt 00:00:11]} 2. Nf3 {[%clk
00:05:06]} Nf6 {[%clk 00:05:02]} {[%emt 00:00:07]} 3. d3 {[%clk 00:05:06]}
{[%emt 00:00:04]} d5 {[%clk 00:04:57]} {[%emt 00:00:04]} 4. g3 {[%clk
00:05:08]} Bg4 {[%clk 00:04:50]} {[%emt 00:00:13]} 5. Bg2 {[%clk 00:05:10]} e6
{[%clk 00:04:50]} 6. h3 {[%clk 00:05:11]} {[%emt 00:00:12]} Bh5 {[%clk
00:04:49]} {[%emt 00:00:08]} 7. e3 {[%clk 00:05:10]} a6 {[%clk 00:04:44]}
{[%emt 00:00:03]} 8. a3 {[%clk 00:05:09]} Bd6 {[%clk 00:04:45]} 9. O-O {[%clk
00:05:05]} {[%emt 00:00:21]} Ne5 {[%clk 00:04:26]} {[%emt 00:00:06]} 10. b3
{[%clk 00:04:53]} {[%emt 00:00:30]} c5 {[%clk 00:04:21]} 11. Bb2 {[%clk
00:04:46]} {[%emt 00:00:06]} Qc7 {[%clk 00:04:03]} {[%emt 00:00:18]} 12. Qe2
{[%clk 00:04:27]} {[%emt 00:00:25]} O-O {[%clk 00:03:52]} {[%emt 00:00:12]} 13.
Nb1 {[%clk 00:04:17]} {[%emt 00:00:21]} b5 {[%clk 00:03:41]} {[%emt 00:00:05]}
14. Nbd2 {[%clk 00:04:19]} Rac8 {[%clk 00:03:42]} {[%emt 00:00:25]} 15. a4
{[%clk 00:04:15]} c4 {[%clk 00:03:10]} {[%emt 00:00:20]} 16. Bxe5 {[%clk
00:04:03]} {[%emt 00:00:43]} Bxe5 {[%clk 00:03:03]} 17. d4 {[%clk 00:04:05]}
Bd6 {[%clk 00:02:55]} {[%emt 00:00:04]} 18. axb5 {[%clk 00:04:06]} axb5 {[%clk
00:02:55]} 19. bxc4 {[%clk 00:03:55]} {[%emt 00:00:09]} bxc4 {[%clk 00:02:47]}
{[%emt 00:00:17]} 20. e4 {[%clk 00:03:57]} c3 {[%clk 00:02:18]} {[%emt
00:00:27]} 21. e5 {[%clk 00:03:58]} Bb4 {[%clk 00:02:04]} {[%emt 00:00:40]} 22.
Nb3 {[%clk 00:03:50]} Ne4 {[%clk 00:02:01]} {[%emt 00:00:04]} 23. Rfb1 {[%clk
00:03:20]} {[%emt 00:00:24]} Be7 {[%clk 00:01:44]} {[%emt 00:00:20]} 24. Qe3
{[%clk 00:03:17]} {[%emt 00:00:26]} Bxf3 {[%clk 00:01:27]} {[%emt 00:00:07]} 25.
Bxf3 {[%clk 00:03:17]} {[%emt 00:00:14]} Bg5 {[%clk 00:01:27]} 26. Qd3 {[%clk
00:03:07]} {[%emt 00:00:04]} Nd2 {[%clk 00:01:18]} {[%emt 00:00:09]} 27. Nxd2
{[%clk 00:03:07]} {[%emt 00:00:03]} cxd2 {[%clk 00:01:18]} {[%emt 00:00:03]} 28.
h4 {[%clk 00:03:05]} {[%emt 00:00:04]} Bh6 {[%clk 00:01:19]} {[%emt 00:00:04]}
29. Bd1 {[%clk 00:03:03]} {[%emt 00:00:03]} f6 {[%clk 00:01:05]} {[%emt
00:00:27]} 30. Ra6 {[%clk 00:02:21]} {[%emt 00:00:34]} fxe5 {[%clk 00:00:49]}
{[%emt 00:00:24]} 31. Rxe6 {[%clk 00:02:23]} e4 {[%clk 00:00:51]} 32. Qe2
{[%clk 00:01:35]} {[%emt 00:00:48]} Qc3 {[%clk 00:00:32]} {[%emt 00:00:21]} 33.
Rb3 {[%clk 00:00:50]} {[%emt 00:00:48]} Qxd4 {[%clk 00:00:33]} {[%emt
00:00:14]} 34. Kg2 {[%clk 00:00:52]} Rc3 {[%clk 00:00:28]} {[%emt 00:00:04]} 35.
Rxc3 {[%clk 00:00:47]} {[%emt 00:00:04]} Qxc3 {[%clk 00:00:30]} {[%emt
00:00:09]} 36. Qg4 {[%clk 00:00:41]} {[%emt 00:00:12]} e3 {[%clk 00:00:23]} 37.
Rxh6 {[%clk 00:00:35]} {[%emt 00:00:07]} exf2 {[%clk 00:00:24]} {[%emt
00:00:04]} 38. Kf1 {[%clk 00:00:31]} {[%emt 00:00:10]} Qe3 {[%clk 00:00:18]}
{[%emt 00:00:07]} 39. Qe6+ {[%clk 00:00:28]} {[%emt 00:00:04]} Kh8 {[%clk
00:00:20]} 40. Qxe3 {[%clk 00:00:29]} {[%emt 00:00:03]} 1-0

[Event "Open Mancomunitat de la Ribera Alta (Sumacàrcer)"]
[Site "Sumacàrcer, Spain"]
[Date "2018.11.18"]
[Round "1.2"]
[White "Carmona Huertas, Juan Antonio"]
[Black "Kovacevic, Slobodan"]
[Result "0-1"]
[TimeControl "5m+3s"]
[WhiteElo "1784"]
[BlackElo "2455"]

1. e4 {[%clk 00:05:03]} c5 {[%clk 00:05:06]} 2. Nf3 {[%clk 00:05:05]} e6 {[%clk
00:05:08]} {[%emt 00:00:03]} 3. d4 {[%clk 00:05:07]} cxd4 {[%clk 00:05:10]} 4.
Nxd4 {[%clk 00:05:09]} {[%emt 00:00:04]} a6 {[%clk 00:05:12]} 5. Be2 {[%clk
00:04:09]} {[%emt 00:01:01]} Nf6 {[%clk 00:05:13]} {[%emt 00:00:04]} 6. Nc3
{[%clk 00:03:49]} {[%emt 00:00:32]} Qc7 {[%clk 00:05:15]} 7. O-O {[%clk
00:03:47]} d6 {[%clk 00:05:12]} 8. Be3 {[%clk 00:03:49]} b5 {[%clk 00:05:14]} 9.
a3 {[%clk 00:03:38]} {[%emt 00:00:14]} Bb7 {[%clk 00:05:16]} {[%emt 00:00:38]}
10. f3 {[%clk 00:03:06]} {[%emt 00:00:03]} Nbd7 {[%clk 00:05:18]} {[%emt
00:00:04]} 11. Nb3 {[%clk 00:02:45]} {[%emt 00:00:17]} Be7 {[%clk 00:05:19]}
{[%emt 00:00:18]} 12. Qe1 {[%clk 00:02:25]} {[%emt 00:00:10]} O-O {[%clk
00:05:19]} {[%emt 00:00:07]} 13. Qf2 {[%clk 00:02:26]} Rac8 {[%clk 00:05:20]}
14. g4 {[%clk 00:02:11]} {[%emt 00:00:23]} Ne5 {[%clk 00:05:15]} 15. Bb6 {[%clk
00:01:23]} {[%emt 00:00:49]} Qb8 {[%clk 00:05:14]} {[%emt 00:00:10]} 16. Na5
{[%clk 00:01:20]} {[%emt 00:00:04]} Nfd7 {[%clk 00:05:05]} {[%emt 00:00:11]} 17.
Nxb7 {[%clk 00:01:18]} {[%emt 00:00:11]} Qxb7 {[%clk 00:04:58]} {[%emt
00:00:04]} 18. Be3 {[%clk 00:01:19]} {[%emt 00:00:03]} Nc4 {[%clk 00:04:59]}
{[%emt 00:00:04]} 19. Bxc4 {[%clk 00:01:21]} bxc4 {[%clk 00:05:01]} 20. Rab1
{[%clk 00:01:21]} {[%emt 00:00:04]} Ne5 {[%clk 00:04:56]} {[%emt 00:00:11]} 21.
h3 {[%clk 00:01:15]} {[%emt 00:00:08]} Rfe8 {[%clk 00:04:55]} {[%emt 00:00:04]}
22. f4 {[%clk 00:01:16]} Nd7 {[%clk 00:04:56]} {[%emt 00:00:07]} 23. Rfd1
{[%clk 00:01:11]} {[%emt 00:00:07]} Rb8 {[%clk 00:04:41]} {[%emt 00:00:11]} 24.
Bd4 {[%clk 00:01:03]} {[%emt 00:00:13]} Qc6 {[%clk 00:04:31]} {[%emt 00:00:25]}
25. Qg2 {[%clk 00:00:32]} {[%emt 00:00:21]} Rec8 {[%clk 00:04:23]} {[%emt
00:00:09]} 26. Ne2 {[%clk 00:00:34]} Rb7 {[%clk 00:04:19]} {[%emt 00:00:13]} 27.
Bc3 {[%clk 00:00:36]} Nc5 {[%clk 00:04:17]} {[%emt 00:00:04]} 28. Ng3 {[%clk
00:00:33]} {[%emt 00:00:12]} Bh4 {[%clk 00:04:18]} 29. Nh5 {[%clk 00:00:31]}
{[%emt 00:00:04]} g6 {[%clk 00:04:12]} {[%emt 00:00:14]} 30. Nf6+ {[%clk
00:00:23]} {[%emt 00:00:03]} Bxf6 31. Bxf6 {[%emt 00:00:02]} Nxe4 {[%clk
00:04:15]} 32. Bd4 {[%clk 00:00:20]} {[%emt 00:00:09]} f5 {[%clk 00:04:06]}
{[%emt 00:00:24]} 33. gxf5 {[%clk 00:00:21]} exf5 {[%clk 00:04:08]} 34. h4
{[%clk 00:00:15]} {[%emt 00:00:20]} Kf7 {[%clk 00:04:05]} {[%emt 00:00:04]} 35.
Kh2 Rg8 {[%clk 00:03:50]} 36. Re1 {[%clk 00:00:17]} {[%emt 00:00:04]} Qe8
{[%clk 00:03:39]} {[%emt 00:00:11]} 37. Qf1 {[%clk 00:00:12]} {[%emt 00:00:13]}
d5 {[%clk 00:03:38]} {[%emt 00:00:03]} 38. b3 {[%clk 00:00:14]} cxb3 {[%clk
00:03:29]} {[%emt 00:00:18]} 39. Qxa6 {[%clk 00:00:16]} Qe7 {[%clk 00:03:23]}
{[%emt 00:00:06]} 40. Rxe4 {[%clk 00:00:17]} {[%emt 00:00:04]} fxe4 {[%clk
00:03:20]} {[%emt 00:00:04]} 41. cxb3 {[%clk 00:00:19]} Qxh4+ {[%clk 00:03:13]}
{[%emt 00:00:09]} 42. Kg2 {[%clk 00:00:21]} {[%emt 00:00:11]} Qg4+ {[%clk
00:03:14]} 43. Kh1 {[%clk 00:00:17]} Qh4+ {[%clk 00:03:11]} {[%emt 00:00:07]}
44. Kg2 {[%clk 00:00:18]} {[%emt 00:00:03]} Rd7 {[%clk 00:03:01]} {[%emt
00:00:10]} 45. Qc6 {[%clk 00:00:20]} Qg4+ {[%clk 00:02:59]} {[%emt 00:00:07]}
46. Kh1 {[%clk 00:00:21]} {[%emt 00:00:04]} Qe6 {[%clk 00:03:00]} 47. Qc3
{[%clk 00:00:07]} {[%emt 00:00:13]} Re7 {[%clk 00:02:46]} {[%emt 00:00:27]} 48.
b4 {[%emt 00:00:07]} Rc8 49. Qe3 {[%clk 00:00:05]} Qg4 {[%clk 00:02:47]} 50. b5
{[%clk 00:00:04]} {[%emt 00:00:33]} Rc2 {[%clk 00:02:47]} {Bandera} 0-1

[Event "Open Mancomunitat de la Ribera Alta (Sumacàrcer)"]
[Site "Sumacàrcer, Spain"]
[Date "2018.11.18"]
[Round "1.3"]
[White "Campos Gambuti, Luis Maria"]
[Black "Varazdatyan, Narek"]
[Result "1-0"]
[TimeControl "5m+3s"]
[WhiteElo "2432"]
[BlackElo "1783"]

1. d4 {[%clk 00:05:05]} e5 {[%clk 00:05:03]} {[%emt 00:00:09]} 2. dxe5 {[%clk
00:05:06]} Nc6 {[%clk 00:05:04]} 3. Bf4 {[%clk 00:05:08]} Qe7 {[%clk 00:05:06]}
{[%emt 00:00:32]} 4. Nf3 {[%clk 00:05:09]} Qb4+ {[%clk 00:05:07]} 5. Bd2 {[%clk
00:05:11]} Qxb2 {[%clk 00:05:08]} {[%emt 00:00:04]} 6. Nc3 {[%clk 00:05:13]}
Nb4 {[%clk 00:05:09]} 7. Nd4 {[%clk 00:05:14]} c6 {[%clk 00:04:56]} {[%emt
00:00:04]} 8. a3 {[%clk 00:04:58]} {[%emt 00:00:08]} Bc5 {[%clk 00:04:16]}
{[%emt 00:00:43]} 9. Rb1 {[%clk 00:05:00]} {[%emt 00:00:32]} Qxa3 {[%clk
00:04:02]} {[%emt 00:00:04]} 10. Nb3 {[%clk 00:04:56]} Nd5 {[%clk 00:02:22]}
{[%emt 00:01:33]} 11. Ra1 {[%clk 00:04:21]} {[%emt 00:00:37]} Qb2 {[%clk
00:01:34]} {[%emt 00:00:49]} 12. Nxd5 {[%clk 00:04:21]} {[%emt 00:00:09]} cxd5
{[%clk 00:00:59]} {[%emt 00:00:34]} 13. Nxc5 {[%clk 00:04:22]} {[%emt
00:00:05]} Qxe5 {[%clk 00:00:53]} {[%emt 00:00:10]} 14. Nd3 {[%clk 00:04:15]}
{[%emt 00:00:08]} Qc7 {[%clk 00:00:53]} {[%emt 00:00:06]} 15. g3 {[%clk
00:04:11]} {[%emt 00:00:09]} Nf6 {[%clk 00:00:54]} 16. Bg2 {[%clk 00:04:13]}
O-O {[%clk 00:00:53]} {[%emt 00:00:13]} 17. O-O {[%clk 00:04:15]} b6 {[%clk
00:00:46]} {[%emt 00:00:03]} 18. c4 {[%clk 00:03:55]} {[%emt 00:00:20]} Bb7
{[%clk 00:00:37]} {[%emt 00:00:13]} 19. cxd5 {[%clk 00:03:54]} {[%emt
00:00:03]} Bxd5 {[%clk 00:00:38]} {[%emt 00:00:04]} 20. Bxd5 {[%clk 00:03:51]}
{[%emt 00:00:10]} Nxd5 {[%clk 00:00:40]} 21. Qb3 {[%clk 00:03:52]} Nf6 {[%clk
00:00:35]} {[%emt 00:00:05]} 22. Rfc1 {[%clk 00:03:53]} {[%emt 00:00:04]} Qb7
{[%clk 00:00:32]} {[%emt 00:00:04]} 23. Nf4 {[%clk 00:03:43]} {[%emt 00:00:12]}
Ne4 {[%clk 00:00:22]} {[%emt 00:00:15]} 24. Bb4 {[%clk 00:03:41]} {[%emt
00:00:05]} Rfe8 {[%clk 00:00:15]} {[%emt 00:00:12]} 25. Qd5 {[%clk 00:03:32]}
{[%emt 00:00:07]} Qxd5 {[%clk 00:00:09]} {[%emt 00:00:11]} 26. Nxd5 {[%clk
00:03:34]} {[%emt 00:00:04]} Re5 {[%clk 00:00:06]} {[%emt 00:00:04]} 27. Nxb6
{[%clk 00:03:25]} {[%emt 00:00:09]} Rb8 {[%clk 00:00:04]} {[%emt 00:00:15]} 28.
Nxd7 {[%clk 00:03:25]} 1-0

[Event "Open Mancomunitat de la Ribera Alta (Sumacàrcer)"]
[Site "Sumacàrcer, Spain"]
[Date "2018.11.18"]
[Round "1.4"]
[White "Najarro Garcia, Jose Maria"]
[Black "Granero Roca, Antonio"]
[Result "0-1"]
[TimeControl "5m+3s"]
[WhiteElo "1766"]
[BlackElo "2372"]

1. e4 {[%clk 00:05:03]} {[%emt 00:00:15]} c5 {[%clk 00:05:05]} 2. Nf3 {[%clk
00:05:04]} Nc6 {[%clk 00:05:06]} 3. Nc3 {[%clk 00:04:52]} {[%emt 00:00:13]} g6
{[%clk 00:05:07]} 4. Bc4 {[%clk 00:04:40]} {[%emt 00:00:39]} Bg7 {[%clk
00:05:01]} 5. O-O {[%clk 00:04:28]} {[%emt 00:00:10]} d6 {[%clk 00:05:02]} 6.
h3 {[%clk 00:04:09]} {[%emt 00:00:16]} Nf6 {[%clk 00:05:03]} 7. d3 {[%clk
00:04:03]} {[%emt 00:00:07]} O-O {[%clk 00:05:02]} {[%emt 00:00:07]} 8. Be3
{[%clk 00:04:02]} {[%emt 00:00:03]} a6 {[%clk 00:05:01]} {[%emt 00:00:08]} 9.
a4 {[%clk 00:04:04]} Bd7 {[%clk 00:04:54]} {[%emt 00:00:06]} 10. Qd2 {[%clk
00:03:35]} {[%emt 00:00:32]} Rc8 {[%clk 00:04:54]} {[%emt 00:00:39]} 11. Rab1
{[%clk 00:03:14]} {[%emt 00:00:03]} e6 {[%clk 00:04:42]} {[%emt 00:00:11]} 12.
Ne2 {[%clk 00:03:03]} {[%emt 00:00:04]} Ne5 {[%clk 00:04:31]} {[%emt 00:00:12]}
13. Nxe5 {[%clk 00:02:57]} {[%emt 00:00:29]} dxe5 {[%clk 00:04:32]} 14. Bg5
{[%clk 00:02:21]} {[%emt 00:00:21]} Bxa4 {[%clk 00:04:10]} {[%emt 00:00:39]} 15.
b4 {[%clk 00:01:51]} {[%emt 00:00:21]} cxb4 {[%clk 00:04:04]} {[%emt 00:00:07]}
16. Rxb4 {[%clk 00:01:51]} {[%emt 00:00:24]} Bc6 {[%clk 00:04:01]} 17. f4
{[%clk 00:01:29]} {[%emt 00:00:16]} Nxe4 {[%clk 00:03:44]} {[%emt 00:00:14]} 18.
Bxd8 {[%clk 00:01:12]} {[%emt 00:00:19]} Nxd2 {[%clk 00:03:44]} {[%emt
00:00:19]} 19. Rd1 {[%clk 00:01:06]} {[%emt 00:00:07]} Nxc4 {[%clk 00:03:44]}
20. Rxc4 {[%clk 00:01:07]} Rfxd8 {[%clk 00:03:44]} 21. fxe5 {[%clk 00:00:53]}
{[%emt 00:00:49]} Bxe5 {[%clk 00:03:40]} 22. d4 {[%clk 00:00:56]} Bg7 {[%clk
00:03:30]} {[%emt 00:00:03]} 23. c3 {[%clk 00:00:57]} Bb5 {[%clk 00:03:28]} 24.
Rxc8 {[%clk 00:00:58]} Rxc8 {[%clk 00:03:30]} 25. Kf2 {[%clk 00:00:25]} {[%emt
00:01:04]} Bxe2 {[%clk 00:03:28]} 26. Kxe2 {[%clk 00:00:27]} Rxc3 {[%clk
00:03:30]} 27. Rb1 {[%clk 00:00:18]} {[%emt 00:00:03]} b5 {[%clk 00:03:26]} 28.
Ra1 {[%clk 00:00:19]} Rc6 {[%clk 00:03:26]} 29. Rd1 {[%clk 00:00:21]} a5 {[%clk
00:03:22]} {[%emt 00:00:04]} 30. d5 {[%clk 00:00:20]} {[%emt 00:00:03]} exd5
{[%clk 00:03:20]} {[%emt 00:00:04]} 31. Rxd5 {[%clk 00:00:22]} Rb6 {[%clk
00:03:17]} {[%emt 00:00:06]} 32. Rd8+ {[%clk 00:00:24]} {[%emt 00:00:04]} Bf8
{[%clk 00:03:18]} 33. Kd3 {[%clk 00:00:20]} {[%emt 00:00:06]} Rd6+ {[%clk
00:03:19]} {[%emt 00:00:04]} 0-1

[Event "Open Mancomunitat de la Ribera Alta (Sumacàrcer)"]
[Site "Sumacàrcer, Spain"]
[Date "2018.11.18"]
[Round "1.6"]
[White "Barberan Perez, Guillermo"]
[Black "Cruz Lledo, Pablo"]
[Result "0-1"]
[TimeControl "5m+3s"]
[WhiteElo "1736"]
[BlackElo "2335"]

1. e4 {[%clk 00:05:05]} {[%emt 00:00:51]} c6 {[%clk 00:05:02]} 2. d4 {[%clk
00:05:05]} d5 {[%clk 00:05:03]} 3. Nd2 {[%clk 00:05:06]} dxe4 {[%clk 00:05:03]}
4. Nxe4 {[%clk 00:05:08]} Nf6 {[%clk 00:05:05]} 5. Nxf6+ {[%clk 00:05:07]} gxf6
{[%clk 00:05:06]} 6. Nf3 {[%clk 00:05:03]} Bg4 {[%clk 00:05:06]} 7. Be2 {[%clk
00:05:01]} e6 {[%clk 00:05:07]} {[%emt 00:00:03]} 8. h3 {[%clk 00:05:02]} Bh5
{[%clk 00:05:05]} {[%emt 00:00:03]} 9. O-O {[%clk 00:04:11]} {[%emt 00:00:44]}
Nd7 {[%clk 00:05:06]} {[%emt 00:00:32]} 10. c4 {[%clk 00:04:10]} Qc7 {[%clk
00:05:06]} {[%emt 00:00:07]} 11. Be3 {[%clk 00:03:43]} {[%emt 00:00:03]} Rg8
{[%clk 00:05:02]} {[%emt 00:00:05]} 12. Kh1 {[%clk 00:03:41]} {[%emt 00:00:32]}
f5 {[%clk 00:04:50]} {[%emt 00:00:07]} 13. Qd2 {[%clk 00:03:38]} Nf6 {[%clk
00:04:46]} 14. Ne5 {[%clk 00:03:28]} {[%emt 00:00:10]} Bxe2 {[%clk 00:04:21]}
{[%emt 00:00:24]} 15. Qxe2 {[%clk 00:03:29]} {[%emt 00:00:11]} Bd6 {[%clk
00:04:18]} {[%emt 00:00:04]} 16. Bf4 {[%clk 00:03:20]} {[%emt 00:00:07]} c5
{[%clk 00:04:09]} {[%emt 00:00:26]} 17. d5 {[%clk 00:03:04]} {[%emt 00:00:08]}
O-O-O {[%clk 00:03:49]} {[%emt 00:00:21]} 18. dxe6 {[%clk 00:02:43]} {[%emt
00:00:31]} fxe6 {[%clk 00:03:50]} 19. Rfd1 {[%clk 00:02:28]} {[%emt 00:00:12]}
Ne4 {[%clk 00:03:44]} {[%emt 00:00:10]} 20. f3 {[%clk 00:02:04]} {[%emt
00:00:29]} Bxe5 {[%clk 00:03:40]} {[%emt 00:00:06]} 21. Bxe5 {[%clk 00:01:49]}
{[%emt 00:00:17]} Qxe5 {[%clk 00:03:35]} {[%emt 00:00:20]} 22. fxe4 {[%clk
00:01:49]} fxe4 {[%clk 00:03:28]} {[%emt 00:00:03]} 23. Re1 {[%clk 00:00:58]}
{[%emt 00:00:50]} Rd4 {[%clk 00:03:17]} {[%emt 00:00:14]} 24. b3 {[%clk
00:00:59]} {[%emt 00:00:12]} Rg3 {[%clk 00:03:06]} {[%emt 00:00:21]} 25. Rad1
{[%clk 00:00:51]} {[%emt 00:00:13]} e3 {[%clk 00:03:07]} 26. Rd3 {[%clk
00:00:24]} {[%emt 00:00:25]} Rxd3 {[%clk 00:02:09]} {[%emt 00:00:49]} 27. Qxd3
{[%clk 00:00:25]} {[%emt 00:00:12]} Qf5 {[%clk 00:02:09]} 28. Qxf5 {[%clk
00:00:19]} {[%emt 00:00:14]} exf5 {[%clk 00:02:10]} 29. Kh2 {[%clk 00:00:21]}
f4 {[%clk 00:02:08]} 30. Re2 {[%clk 00:00:17]} {[%emt 00:00:18]} Kd7 {[%clk
00:02:00]} 31. a3 {[%clk 00:00:19]} {[%emt 00:00:04]} Ke6 {[%clk 00:01:57]}
{[%emt 00:00:05]} 32. b4 {[%clk 00:00:19]} cxb4 {[%clk 00:01:50]} {[%emt
00:00:09]} 33. axb4 {[%clk 00:00:22]} {[%emt 00:00:03]} Ke5 {[%clk 00:01:52]}
34. Ra2 {[%clk 00:00:22]} {[%emt 00:00:07]} a6 {[%clk 00:01:44]} {[%emt
00:00:05]} 35. Ra5+ {[%clk 00:00:22]} {[%emt 00:00:04]} Kd4 {[%clk 00:01:43]}
{[%emt 00:00:08]} 36. b5 {[%clk 00:00:22]} {[%emt 00:00:07]} e2 {[%clk
00:01:36]} {[%emt 00:00:04]} 37. Ra1 {[%clk 00:00:22]} {[%emt 00:00:04]} Re3
{[%clk 00:01:35]} {[%emt 00:00:04]} 38. Re1 {[%clk 00:00:20]} {[%emt 00:00:06]}
Kxc4 {[%clk 00:01:36]} 39. bxa6 {[%clk 00:00:22]} {[%emt 00:00:03]} bxa6 {[%emt
00:00:05]} 0-1

[Event "Open Mancomunitat de la Ribera Alta (Sumacàrcer)"]
[Site "Sumacàrcer, Spain"]
[Date "2018.11.18"]
[Round "1.7"]
[White "Garcia Vasquez, Jhoel"]
[Black "Medina Calero, Francisco"]
[Result "1-0"]
[TimeControl "5m+3s"]
[WhiteElo "2298"]
[BlackElo "1724"]

1. e4 {[%clk 00:05:03]} {[%emt 00:00:06]} e5 {[%clk 00:05:04]} {[%emt
00:00:05]} 2. Nf3 {[%clk 00:05:04]} d6 {[%clk 00:05:06]} 3. d4 {[%clk
00:05:01]} {[%emt 00:00:06]} exd4 {[%clk 00:05:06]} {[%emt 00:00:04]} 4. Qxd4
{[%clk 00:05:02]} Qf6 {[%clk 00:04:56]} {[%emt 00:00:12]} 5. Qd3 {[%clk
00:05:03]} Nc6 {[%clk 00:04:51]} {[%emt 00:00:14]} 6. Nc3 {[%clk 00:05:04]} Be6
{[%clk 00:04:18]} {[%emt 00:00:35]} 7. Nd5 {[%clk 00:05:03]} {[%emt 00:00:08]}
Bxd5 {[%clk 00:04:11]} {[%emt 00:00:06]} 8. exd5 {[%clk 00:05:04]} Ne5 {[%clk
00:04:04]} {[%emt 00:00:12]} 9. Qb5+ {[%clk 00:03:50]} {[%emt 00:01:17]} c6
{[%clk 00:03:52]} {[%emt 00:00:16]} 10. Qxb7 {[%clk 00:03:47]} {[%emt
00:00:05]} Nxf3+ {[%clk 00:03:45]} {[%emt 00:00:10]} 11. gxf3 {[%clk 00:03:48]}
Qe7+ {[%clk 00:03:37]} {[%emt 00:00:20]} 12. Qxe7+ {[%clk 00:03:47]} Nxe7
{[%clk 00:03:37]} 13. dxc6 Nxc6 {[%clk 00:03:39]} 14. Bb5 {[%clk 00:03:46]}
{[%emt 00:00:05]} Kd7 {[%clk 00:03:39]} 15. c3 {[%clk 00:03:48]} {[%emt
00:00:04]} a6 {[%clk 00:03:41]} 16. Ba4 {[%clk 00:03:50]} Kc7 {[%clk 00:03:39]}
{[%emt 00:00:06]} 17. Be3 {[%clk 00:03:48]} {[%emt 00:00:06]} Be7 {[%clk
00:03:22]} {[%emt 00:00:17]} 18. Bb3 {[%clk 00:03:44]} {[%emt 00:00:07]} f6
{[%clk 00:03:04]} {[%emt 00:00:21]} 19. Bd5 {[%clk 00:03:45]} {[%emt 00:00:05]}
Rab8 {[%clk 00:03:02]} {[%emt 00:00:04]} 20. b4 {[%clk 00:03:46]} {[%emt
00:00:04]} Ne5 {[%clk 00:03:01]} {[%emt 00:00:05]} 21. Ke2 {[%clk 00:03:38]}
{[%emt 00:00:06]} Rb5 {[%clk 00:02:52]} {[%emt 00:00:12]} 22. Bb3 {[%clk
00:03:34]} {[%emt 00:00:12]} Rhb8 {[%clk 00:02:40]} {[%emt 00:00:10]} 23. a3
{[%clk 00:03:31]} {[%emt 00:00:07]} a5 {[%clk 00:02:24]} {[%emt 00:00:19]} 24.
Rhd1 {[%clk 00:03:32]} {[%emt 00:00:06]} axb4 {[%clk 00:02:17]} {[%emt
00:00:09]} 25. axb4 {[%clk 00:03:33]} R8b7 {[%clk 00:02:12]} {[%emt 00:00:06]}
26. Bd5 {[%clk 00:03:34]} Rb8 {[%clk 00:02:03]} {[%emt 00:00:14]} 27. Ra7+
{[%clk 00:02:59]} {[%emt 00:00:38]} Kd8 {[%clk 00:02:05]} 28. h3 {[%clk
00:03:01]} {[%emt 00:00:05]} g5 {[%clk 00:01:47]} {[%emt 00:00:18]} 29. f4
{[%clk 00:02:49]} {[%emt 00:00:15]} Ng6 {[%clk 00:01:33]} {[%emt 00:00:17]} 30.
fxg5 {[%clk 00:02:40]} {[%emt 00:00:12]} fxg5 {[%clk 00:01:31]} {[%emt
00:00:05]} 31. Bc6 {[%clk 00:01:47]} {[%emt 00:00:56]} Re5 {[%clk 00:01:22]}
{[%emt 00:00:12]} 32. Kf1 {[%clk 00:01:49]} Nf8 {[%clk 00:01:06]} {[%emt
00:00:19]} 33. b5 {[%clk 00:01:47]} {[%emt 00:00:06]} Rexb5 {[%clk 00:00:46]}
{[%emt 00:00:23]} 34. Bxb5 {[%clk 00:01:49]} Rxb5 {[%clk 00:00:49]} {[%emt
00:00:09]} 35. c4 {[%emt 00:00:18]} Re5 {[%clk 00:00:37]} 36. c5 {[%clk
00:01:50]} Re6 {[%clk 00:00:37]} 37. c6 {[%clk 00:01:52]} Kc8 {[%clk 00:00:23]}
{[%emt 00:00:15]} 38. Bb6 {[%clk 00:01:50]} {[%emt 00:00:08]} 1-0